bitfinex/quotes_ETHUSD_20250523
["timestamp","ask_amount","ask_price","bid_price","bid_amount"]
[1748004345961,3.93364181,2542.2,2542.0,16.994]
[1748004346308,3.93368102,2542.2,2542.0,16.994]
[1748004346513,11.799,2542.6,2542.0,16.994]
[1748004346802,1.21922852,2542.5,2542.0,16.994]
[1748004347004,3.93375555,2542.1,2542.0,16.994]
[1748004347209,13.3331,2542.1,2540.7,16.986]
[1748004347495,3.93431384,2541.8,2540.8,25.86174357]
[1748004347697,11.796,2541.7,2541.0,3.93545848]
[1748004347898,11.796,2541.7,2541.1,3.9353036]
[1748004348099,15.72833555,2542.0,2541.5,3.93458672]
[1748004348298,11.796,2542.1,2541.6,21.925]
[1748004348484,15.72990859,2542.1,2541.7,21.925]
[1748004348689,3.9339103,2542.0,2541.8,21.925]
[1748004348985,3.93406506,2541.9,2541.8,21.925]
[1748004349296,0.39328517,2542.7,2541.7,23.4633]
[1748004349501,3.93406506,2541.9,2541.8,21.925]
[1748004350070,8.0,2542.5,2541.8,21.925]
[1748004350260,11.795,2542.1,2541.8,21.925]
[1748004350461,3.9345496,2541.6,2540.9,3.93561336]
[1748004350696,3.93421984,2541.8,2541.0,21.925]
[1748004351063,1.6518,2541.9,2540.8,1.5383]
[1748004351367,3.93491715,2541.4,2540.9,25.85861187]
[1748004351563,11.794,2541.4,2540.9,21.923]
[1748004351788,15.7289598,2541.4,2540.9,25.85855681]
[1748004352097,3.93511233,2541.3,2540.9,21.923]
[1748004352306,15.72891562,2541.4,2540.9,25.85860293]
[1748004352499,13.76037286,2541.4,2540.8,1.5383]
[1748004352678,3.93576826,2540.8,2540.7,38.909]
[1748004353599,11.794,2540.9,2540.7,38.909]
[1748004353798,11.794,2541.1,2540.7,38.909]
[1748004354001,3.93547922,2541.0,2540.7,38.909]
[1748004354201,11.794,2541.1,2541.0,3.93545848]
[1748004354385,4.55233946,2541.8,2541.0,3.93545848]
[1748004354386,0.61809372,2541.3,2541.2,5.54184874]
[1748004354587,0.61809372,2541.3,2541.2,27.46684874]
[1748004354772,0.61809372,2541.3,2541.2,1.6067]
[1748004354964,0.61809372,2541.3,2541.2,23.5317]
[1748004355167,0.61809372,2541.3,2541.2,21.925]
[1748004355801,2.25287532,2541.3,2541.1,21.925]
[1748004355989,3.935299,2541.2,2541.1,21.925]
[1748004356190,0.37404424,2541.3,2541.1,21.925]
[1748004356703,3.93514874,2541.2,2541.1,21.925]
[1748004357002,4.30904093,2541.3,2541.1,21.925]
[1748004357303,11.795,2541.2,2541.1,21.925]
[1748004357672,12.16904424,2541.2,2541.1,21.925]
[1748004357868,3.93533128,2541.1,2540.7,16.986]
[1748004358068,16.10425256,2541.2,2540.7,16.986]
[1748004358275,3.93532212,2541.1,2540.8,21.852]
[1748004358469,3.93547477,2541.0,2540.8,21.852]
[1748004358670,3.93558972,2541.0,2540.8,21.852]
[1748004358887,3.93569069,2540.9,2540.7,16.986]
[1748004359081,15.73176826,2540.8,2540.7,16.986]
[1748004359672,11.796,2540.8,2540.7,16.986]
[1748004359887,12.16215768,2540.8,2540.7,16.986]
[1748004360093,12.53620192,2540.8,2540.7,16.986]
[1748004361102,12.53620192,2540.8,2540.7,38.839]
[1748004361312,12.17004424,2540.8,2540.7,38.839]
[1748004361887,12.17004424,2540.8,2540.7,16.986]
[1748004362082,12.17004424,2540.8,2540.7,38.839]
[1748004362712,12.17004424,2540.8,2540.7,16.986]
[1748004363009,17.36969485,2540.8,2540.7,38.839]
[1748004363208,12.17004424,2540.8,2540.7,38.839]
[1748004363412,16.1058125,2540.8,2540.7,16.986]
[1748004363574,16.94087724,2540.8,2540.7,38.839]
[1748004363774,13.00510898,2540.8,2540.7,38.839]
[1748004364615,1.20910898,2540.8,2540.7,42.77492317]
[1748004365125,1.54523432,2542.4,2542.3,3.93344609]
[1748004365345,1.950957,2543.2,2542.3,26.76623332]
[1748004365645,2.5362441,2543.4,2543.3,3.9318995]
[1748004365848,2.5362441,2543.4,2543.3,44.4003995]
[1748004366013,2.5362441,2543.4,2543.3,22.5473995]
[1748004366207,2.5362441,2543.4,2543.3,52.3953995]
[1748004366661,2.5362441,2543.4,2543.3,53.99958273]
[1748004366839,3.7068183,2544.0,2543.7,8.0]
[1748004367150,3.7068183,2544.0,2543.6,3.93142837]
[1748004367151,3.17138698,2544.2,2544.1,3.9306631]
[1748004367450,1.17046481,2544.5,2544.4,12.48019965]
[1748004367659,0.91895419,2544.8,2544.7,14.00463631]
[1748004367809,6.6332538,2545.5,2544.9,3.92942748]
[1748004368017,6.6332538,2545.5,2544.9,23.72242748]
[1748004368018,2.91620186,2545.0,2544.9,23.72242748]
[1748004368241,6.6332538,2545.5,2545.4,5.54485561]
[1748004368548,6.6332538,2545.5,2545.4,30.52785561]
[1748004368931,6.1373538,2545.5,2545.4,42.87085561]
[1748004369240,2.08781162,2546.3,2545.5,8.0]
[1748004369410,2.08781162,2546.3,2545.7,3.92805273]
[1748004369615,2.08781162,2546.3,2545.6,21.836]
[1748004369920,2.08781162,2546.3,2545.9,3.92776033]
[1748004370125,2.08781162,2546.3,2545.7,8.0]
[1748004370364,2.08781162,2546.3,2545.8,22.1639058]
[1748004370553,2.08781162,2546.3,2545.9,0.32789292]
[1748004370957,2.08781162,2546.3,2545.9,4.25577571]
[1748004371257,2.08781162,2546.3,2546.0,3.92769545]
[1748004371567,2.08781162,2546.3,2546.1,26.09142447]
[1748004371889,2.08781162,2546.3,2546.2,4.25527554]
[1748004372103,5.49876313,2546.8,2546.3,8.0]
[1748004372252,5.49876313,2546.8,2546.7,11.92665017]
[1748004372452,5.49876313,2546.8,2546.7,33.75365017]
[1748004373493,3.92552367,2547.5,2546.8,3.92638547]
[1748004373692,0.39255237,2547.5,2546.7,29.827]
[1748004373890,3.92500699,2547.8,2546.8,21.827]
[1748004374094,3.92510892,2547.7,2546.4,17.29482854]
[1748004374301,3.92680436,2546.6,2546.5,22.15481567]
[1748004374790,3.92680436,2546.6,2546.5,0.32781567]
[1748004375479,3.92803833,2545.8,2545.7,21.819]
[1748004375967,3.92803833,2545.8,2545.3,18.6226]
[1748004375968,3.92865561,2545.4,2545.3,18.6226]
[1748004376167,11.782,2546.2,2545.3,38.78]
[1748004376368,3.92804224,2545.8,2545.3,38.78]
[1748004376556,3.92788404,2545.9,2545.4,21.819]
[1748004376761,3.92850127,2545.5,2545.4,21.819]
[1748004376956,1.1782,2546.1,2545.4,21.819]
[1748004377180,3.92824799,2545.7,2545.4,21.819]
[1748004377383,3.92847651,2545.6,2545.4,21.819]
[1748004377661,1.1782,2546.1,2545.4,21.819]
[1748004377882,3.92850127,2545.5,2545.4,0.32795733]
[1748004378059,17.35680127,2545.5,2545.4,0.32795733]
[1748004378387,17.35680127,2545.5,2544.3,16.959]
[1748004378388,3.92989074,2544.6,2544.5,21.817]
[1748004378754,3.93019965,2544.4,2544.3,16.959]
[1748004379158,11.777,2544.4,2543.3,3.93181143]
[1748004379393,1.1777,2544.3,2543.4,38.776]
[1748004379598,1.1777,2544.3,2543.5,21.817]
[1748004380213,5.1081569,2544.3,2543.5,21.817]
[1748004380375,3.92973631,2544.7,2543.5,21.817]
[1748004380559,1.6445,2544.8,2543.9,8.0]
[1748004380760,3.92959116,2544.8,2543.9,3.93097212]
[1748004380964,15.70618023,2545.1,2544.1,8.0]
[1748004381165,3.92928643,2545.0,2544.2,3.9303976]
[1748004381402,11.777,2545.1,2544.1,11.7817]
[1748004381564,11.777,2545.1,2544.5,8.0]
[1748004381759,3.92870934,2545.4,2544.6,16.961]
[1748004381760,3.92879598,2545.4,2544.6,16.961]
[1748004381978,17.29481868,2545.7,2544.9,3.92934252]
[1748004382176,15.70721868,2545.7,2545.0,29.82]
[1748004382403,11.779,2545.7,2545.0,29.82]
[1748004382699,12.9569,2545.7,2545.0,21.82]
[1748004382904,3.9287203,2545.4,2545.0,21.82]
[1748004383100,3.92862757,2545.5,2545.0,21.82]
[1748004383303,11.779,2545.7,2545.1,0.03928493]
[1748004383503,3.92842866,2545.6,2545.0,21.82]
[1748004383881,3.92827113,2545.7,2545.0,25.749257]
[1748004384076,3.9284287,2545.6,2545.0,21.82]
[1748004384307,3.92827122,2545.7,2545.0,25.74927077]
[1748004384478,15.70711666,2545.8,2545.1,11.92911593]
[1748004384678,3.92793765,2545.9,2545.2,3.92896432]
[1748004384892,3.92793765,2545.9,2545.1,13.70156612]
[1748004385063,3.92804301,2545.8,2545.2,3.92896432]
[1748004385273,13.3623,2546.5,2545.4,8.0]
[1748004385479,1.65108844,2546.4,2545.1,1.77247632]
[1748004385711,3.92726701,2546.3,2545.2,21.819]
[1748004385876,3.92838079,2545.6,2545.2,21.819]
[1748004386076,3.92858757,2545.5,2545.2,21.819]
[1748004386380,3.92809552,2545.8,2545.2,21.819]
[1748004386576,1.65108844,2546.4,2545.3,8.0]
[1748004386884,11.778,2546.3,2544.7,9.6297]
[1748004387084,3.92799339,2545.9,2545.1,8.0]
[1748004387310,11.778,2546.2,2545.1,8.0]
[1748004387472,11.778,2546.2,2545.2,21.817]
[1748004387673,3.92851549,2545.5,2545.2,21.817]
[1748004388085,3.92880996,2545.3,2545.2,21.817]
[1748004388311,3.92865779,2545.4,2545.0,8.0]
[1748004388509,3.92772977,2546.0,2545.1,21.747]
[1748004388705,0.31485844,2546.4,2545.5,3.92850054]
[1748004388908,11.777,2546.2,2545.6,16.959]
[1748004389094,3.92759214,2546.1,2545.7,21.747]
[1748004389298,11.777,2546.3,2545.6,16.959]
[1748004389495,11.777,2546.3,2545.8,21.747]
[1748004389496,3.92782444,2546.0,2545.8,21.747]
[1748004389719,3.92788404,2545.9,2545.8,21.747]
[1748004389917,3.92778245,2546.0,2545.8,21.747]
[1748004390085,3.92750412,2546.2,2545.8,21.747]
[1748004390288,0.31485844,2546.3,2545.8,21.747]
[1748004390488,0.31485844,2546.3,2545.9,3.9278532]
[1748004390728,0.31485844,2546.3,2546.2,3.92742125]
[1748004391426,0.31485844,2546.3,2546.2,11.92742125]
[1748004391730,0.31485844,2546.3,2546.2,8.0]
[1748004391912,3.92742125,2546.2,2545.6,16.959]
[1748004392111,3.92742125,2546.2,2541.9,10.52992943]
[1748004392112,1.6214,2545.9,2545.1,21.745]
[1748004392310,1.6214,2545.9,2544.6,18.5192]
[1748004392311,1.6214,2545.9,2545.2,21.745]
[1748004392512,3.92824332,2545.7,2545.3,21.745]
[1748004392714,16.12783432,2546.1,2545.3,21.745]
[1748004392913,3.92865561,2545.4,2545.0,8.0]
[1748004393112,12.20022797,2546.1,2545.2,8.0]
[1748004393644,3.9278783,2546.0,2545.2,8.0]
[1748004393847,0.31485844,2546.3,2545.2,9.5164]
[1748004393988,0.31485844,2546.3,2545.4,8.0]
[1748004394194,3.92706159,2546.5,2545.6,8.0]
[1748004394393,11.776,2546.6,2546.0,1.614]
[1748004394650,11.776,2546.7,2546.1,3.92750489]
[1748004394798,3.92687989,2546.6,2546.1,3.92756637]
[1748004395004,15.70272404,2546.7,2546.1,3.92756637]
[1748004395205,15.70272404,2546.7,2546.2,3.92739517]
[1748004395423,15.70272404,2546.7,2546.1,3.92756637]
[1748004395424,11.776,2546.7,2546.3,25.67218099]
[1748004395625,3.92631114,2547.0,2546.3,25.67223854]
[1748004395823,3.92606733,2547.1,2546.4,3.92700631]
[1748004396038,3.92625919,2547.0,2546.5,3.92686542]
[1748004396246,5.46988981,2547.2,2546.3,21.745]
[1748004396247,1.5439,2547.2,2546.6,3.92671489]
[1748004396426,3.92612729,2547.1,2546.7,16.956]
[1748004396629,11.776,2547.2,2546.7,20.88257564]
[1748004396951,3.92603405,2547.1,2546.7,20.88264369]
[1748004397257,5.45098515,2547.6,2546.9,3.92634182]
[1748004397258,0.31485844,2547.0,2546.9,3.92634182]
[1748004397451,0.31485844,2547.0,2546.9,21.743]
[1748004398047,3.92560518,2547.4,2546.9,25.66934182]
[1748004398352,3.92603675,2547.1,2546.8,8.0]
[1748004398651,3.92595712,2547.2,2546.8,8.0]
[1748004398852,3.92572759,2547.3,2546.9,21.743]
[1748004399051,3.92565489,2547.4,2546.9,25.66923057]
[1748004399262,1.5257,2547.6,2546.9,21.743]
[1748004399466,3.2482897,2547.6,2546.9,21.743]
[1748004399671,3.92557117,2547.4,2546.7,16.956]
[1748004399837,15.69854117,2547.5,2547.0,21.739]
[1748004400017,3.92585448,2547.3,2547.0,21.739]
[1748004400367,11.773,2547.5,2547.0,21.739]
[1748004400734,3.92565524,2547.4,2547.0,21.739]
[1748004401141,3.92564603,2547.4,2546.9,3.9263199]
[1748004401336,3.92541707,2547.5,2547.0,25.66507922]
[1748004401537,3.92532931,2547.6,2547.1,3.9259128]
[1748004401743,3.92565814,2547.4,2547.0,21.739]
[1748004402167,3.92556738,2547.5,2547.0,21.739]
[1748004402369,3.92488911,2547.9,2547.4,3.92556585]
[1748004402682,3.92534079,2547.6,2547.1,5.57625257]
[1748004402976,3.92517459,2547.7,2547.2,3.9258792]
[1748004403178,3.92533282,2547.6,2547.1,1.6503]
[1748004403350,3.92515883,2547.7,2547.1,5.57626282]
[1748004403553,11.773,2547.8,2547.1,1.6503]
[1748004403743,3.92551399,2547.5,2547.1,5.57632742]
[1748004403940,3.92534937,2547.6,2547.1,5.57632742]
[1748004404281,15.69581872,2547.9,2547.1,1.6503]
[1748004404583,11.771,2547.8,2547.1,2.98272783]
[1748004404738,11.771,2547.8,2547.2,25.66287838]
[1748004404938,3.9251299,2547.7,2547.2,25.66279819]
[1748004405180,3.92499528,2547.8,2547.2,25.66282896]
[1748004405382,3.92486949,2547.9,2547.4,3.92557112]
[1748004405555,3.92440658,2548.2,2547.4,3.92548121]
[1748004405758,3.92463826,2548.1,2547.5,4.31789098]
[1748004405966,11.771,2548.3,2547.5,0.39255711]
[1748004406168,3.92490334,2547.9,2547.4,3.92550316]
[1748004406388,11.771,2548.3,2547.1,1.6503]
[1748004406588,3.9250234,2547.8,2547.5,21.734]
[1748004406792,3.92504522,2547.8,2547.5,21.734]
[1748004406958,3.92512246,2547.7,2547.6,21.734]
[1748004407163,3.92510892,2547.7,2547.6,21.734]
[1748004407348,3.92503933,2547.8,2547.6,21.734]
[1748004407550,3.92510892,2547.7,2547.6,21.734]
[1748004407751,3.92510892,2547.7,2547.1,1.6503]
[1748004407977,11.77,2547.7,2547.2,21.731]
[1748004408411,11.77,2547.7,2547.3,3.92557292]
[1748004408584,15.6951847,2547.7,2547.3,3.92570792]
[1748004408789,3.92528148,2547.6,2547.2,25.65685061]
[1748004408989,11.77,2547.7,2547.2,21.731]
[1748004409204,3.92553084,2547.5,2547.2,21.731]
[1748004409513,8.0,2548.1,2547.3,2.78649526]
[1748004409715,8.0,2548.1,2547.4,3.92549974]
[1748004409716,3.92495389,2547.9,2547.4,3.92549974]
[1748004409901,15.69253307,2548.1,2547.3,2.78649526]
[1748004410212,3.92511479,2547.7,2547.3,3.92564406]
[1748004410378,3.92541707,2547.5,2547.4,21.731]
[1748004411020,5.50400892,2547.7,2545.2,3.92896432]
[1748004411021,0.55,2547.6,2545.2,3.92896432]
[1748004411215,3.92673404,2546.7,2546.2,3.92740825]
[1748004411378,1.5789,2546.9,2546.3,21.729]
[1748004411379,11.768,2546.6,2546.3,21.729]
[1748004411576,1.5789,2546.9,2546.3,21.729]
[1748004411778,3.92640738,2546.9,2546.4,3.9270132]
[1748004412028,3.92640738,2546.9,2546.3,27.82914158]
[1748004412029,11.767,2547.0,2546.3,23.9019]
[1748004412188,3.9263525,2546.9,2546.4,3.92704384]
[1748004412523,3.92672864,2546.7,2546.5,21.729]
[1748004412717,3.92672864,2546.7,2546.6,21.729]
[1748004413027,3.92656601,2546.8,2546.6,21.729]
[1748004413194,3.9264545,2546.9,2546.6,21.729]
[1748004413515,11.767,2547.0,2546.6,21.729]
[1748004413718,3.92665017,2546.7,2546.6,21.729]
[1748004413893,3.92665017,2546.7,2546.6,21.63043511]
[1748004414216,9.5735,2546.7,2545.7,21.731]
[1748004414380,3.9275689,2546.2,2545.7,21.731]
[1748004414586,3.92743711,2546.2,2545.7,21.731]
[1748004414784,11.768,2546.5,2545.9,3.92776242]
[1748004414985,3.92723166,2546.4,2545.9,3.92776242]
[1748004415184,3.92766293,2546.1,2545.8,21.731]
[1748004415384,3.92769885,2546.1,2545.8,21.731]
[1748004415581,11.768,2546.5,2545.4,11.92861668]
[1748004415823,15.69500481,2546.5,2545.9,21.731]
[1748004416123,3.92711278,2546.4,2545.8,21.731]
[1748004416418,5.47058404,2545.9,2545.8,21.731]
[1748004416620,17.23858404,2545.9,2545.8,21.731]
[1748004416778,17.23858404,2545.9,2545.3,16.947]
[1748004416779,17.23860837,2545.9,2545.5,21.731]
[1748004416983,3.92834695,2545.6,2545.5,21.731]
[1748004417184,13.3107,2545.9,2545.3,16.947]
[1748004417384,3.92850243,2545.5,2545.3,16.947]
[1748004417681,3.92865561,2545.4,2545.3,16.947]
[1748004418327,3.92865561,2545.4,2545.3,38.595]
[1748004418792,3.92911869,2545.1,2545.0,21.648]
[1748004418989,11.77,2545.5,2544.6,21.648]
[1748004419195,3.9290877,2545.2,2544.6,29.43746427]
[1748004419425,3.9290877,2545.2,2544.7,3.9297151]
[1748004419766,11.77,2545.5,2544.6,25.57775906]
[1748004419892,11.77,2545.5,2544.6,21.648]
[1748004420224,8.0,2545.6,2544.6,25.57788215]
[1748004420500,15.6986185,2545.5,2544.6,21.648]
[1748004420657,15.6986185,2545.5,2544.7,10.16]
[1748004420658,11.77,2545.5,2544.7,10.16]
[1748004420859,3.92874069,2545.4,2544.9,3.92941705]
[1748004421020,3.92872687,2545.4,2544.9,3.9293552]
[1748004421212,11.77,2545.5,2544.7,9.61]
[1748004421828,3.92872971,2545.4,2544.7,5.53973008]
[1748004422131,15.69851243,2545.5,2544.7,5.55999309]
[1748004422336,11.77,2545.5,2544.8,3.92958189]
[1748004422548,3.92867859,2545.4,2544.7,5.55999309]
[1748004422708,3.92865561,2545.4,2544.7,5.53962891]
[1748004423035,3.92958189,2544.8,2544.7,21.654]
[1748004423235,15.70358189,2544.8,2544.7,21.654]
[1748004423747,17.66688552,2544.8,2544.7,21.654]
[1748004423949,19.22458552,2544.8,2544.7,21.654]
[1748004424462,3.93035412,2544.3,2544.2,21.654]
[1748004424625,3.93112666,2543.8,2543.7,38.608]
[1748004424831,3.9318995,2543.3,2543.2,10.49035107]
[1748004425030,15.7058995,2543.3,2543.2,10.49035107]
[1748004425851,11.774,2543.3,2543.2,10.49035107]
[1748004426648,15.7058995,2543.3,2543.2,10.49035107]
[1748004427437,11.774,2543.3,2543.2,10.49035107]
[1748004427657,11.777,2543.3,2543.2,10.49035107]
[1748004428339,15.7088995,2543.3,2543.2,10.49035107]
[1748004428717,16.18289282,2543.3,2543.2,10.49035107]
[1748004428916,17.68279282,2543.3,2543.2,10.49035107]
[1748004429139,25.68279282,2543.3,2543.2,10.49035107]
[1748004429356,26.23279282,2543.3,2543.2,10.49035107]
[1748004430018,9.4999,2543.3,2543.2,10.49035107]
[1748004430344,1.5315,2543.8,2543.3,3.93179868]
[1748004430669,3.93008878,2544.5,2543.3,3.93188437]
[1748004430873,15.71023638,2544.4,2543.7,3.93114789]
[1748004431037,11.78,2544.4,2543.8,21.667]
[1748004431216,1.5123,2544.5,2543.8,21.667]
[1748004431556,3.9312812,2543.7,2543.6,21.667]
[1748004431715,8.0,2543.6,2543.2,10.49035107]
[1748004431921,3.93131607,2543.7,2543.2,10.49035107]
[1748004432127,11.78,2543.5,2543.2,32.15835107]
[1748004432555,3.93182529,2543.4,2543.2,32.15835107]
[1748004432728,11.9318995,2543.3,2543.2,10.49035107]
[1748004433044,14.0057995,2543.3,2543.2,10.49035107]
[1748004434342,25.2367995,2543.3,2543.2,10.49035107]
[1748004434659,25.7867995,2543.3,2543.2,10.49035107]
[1748004435232,41.8667995,2543.3,2543.2,10.21326426]
[1748004435438,67.48879259,2543.3,2543.2,8.5741469]
[1748004435643,34.03579259,2543.3,2543.2,8.5741469]
[1748004436162,45.81879259,2543.3,2543.2,8.5741469]
[1748004436481,0.55,2543.0,2541.3,1.4622]
[1748004436625,3.93496286,2541.4,2541.2,21.672]
[1748004436820,1.5472,2541.7,2541.0,16.968]
[1748004437061,3.93498882,2541.4,2541.0,16.968]
[1748004437366,8.0,2541.5,2540.7,21.672]
[1748004437761,11.783,2541.4,2540.7,23.8392]
[1748004437964,1.5472,2541.7,2540.8,0.03935669]
[1748004438140,11.783,2541.3,2540.7,23.8392]
[1748004438323,6.783,2541.3,2540.7,23.8392]
[1748004438663,6.783,2541.3,2541.0,3.93539667]
[1748004438967,3.93395496,2542.0,2541.3,3.93490721]
[1748004439135,3.93395496,2542.0,2541.1,3.9353036]
[1748004439136,11.787,2541.9,2541.2,3.93514874]
[1748004439344,1.4234,2542.1,2541.4,21.679]
[1748004439661,11.787,2541.8,2541.4,25.61375975]
[1748004439864,11.787,2541.8,2541.6,3.93452136]
[1748004440063,11.787,2542.2,2541.6,2.56135214]
[1748004440553,0.20528037,2543.0,2541.7,0.03933842]
[1748004440866,3.93309255,2542.6,2541.9,3.93397488]
[1748004441164,11.787,2542.6,2542.2,3.93350979]
[1748004441366,11.787,2542.6,2542.3,3.93341504]
[1748004441566,11.787,2542.6,2542.0,21.682]
[1748004441727,11.787,2542.6,2541.8,1.458]
[1748004441933,3.93383349,2542.1,2541.7,21.682]
[1748004442227,11.789,2542.0,2541.7,21.682]
[1748004442752,3.93421984,2541.8,2541.7,21.682]
[1748004443063,3.93414791,2541.9,2541.7,21.682]
[1748004443366,15.72294677,2542.0,2541.7,21.682]
[1748004443367,3.93421984,2541.8,2541.7,21.682]
[1748004443733,3.93493077,2541.4,2541.2,38.656]
[1748004444056,11.789,2541.7,2541.2,38.656]
[1748004444231,11.789,2541.7,2541.4,3.93476421]
[1748004444424,5.44308332,2542.1,2541.6,3.93442554]
[1748004444425,1.5093,2542.1,2541.6,3.93442554]
[1748004444628,11.789,2542.0,2541.6,3.93442554]
[1748004444829,11.79,2542.1,2541.7,3.9343498]
[1748004445067,15.72381964,2542.1,2541.8,21.685]
[1748004445238,3.9339103,2542.0,2541.3,3.8656]
[1748004445431,3.93463391,2541.6,2541.4,21.685]
[1748004445627,15.72461485,2541.6,2541.4,21.685]
[1748004445847,11.79,2541.6,2541.4,21.685]
[1748004446361,15.72461819,2541.6,2541.4,21.685]
[1748004446567,3.93468424,2541.5,2541.4,21.685]
[1748004446867,15.72459573,2541.6,2541.4,21.685]
[1748004447027,3.93468424,2541.5,2541.4,21.685]
[1748004448248,6.04307802,2541.5,2541.4,21.685]
[1748004448558,3.9349939,2541.3,2541.2,16.974]
[1748004448756,3.93574076,2540.9,2540.4,16.98]
[1748004448961,15.72655031,2541.0,2540.5,21.577]
[1748004449262,3.93584103,2540.8,2540.5,21.577]
[1748004449474,15.72649093,2541.0,2540.5,21.577]
[1748004449637,15.72653239,2541.0,2540.5,21.577]
[1748004450350,3.93561336,2540.9,2540.5,21.577]
[1748004450555,3.93577625,2540.8,2540.5,21.577]
[1748004450755,15.72649554,2541.0,2540.5,21.577]
[1748004451043,3.93563492,2540.9,2540.5,21.577]
[1748004451435,3.93595035,2540.7,2540.5,21.577]
[1748004451753,11.791,2541.0,2540.5,21.577]
[1748004451950,3.93607809,2540.6,2540.5,21.577]
[1748004452135,3.93623302,2540.5,2540.4,16.98]
[1748004452475,11.793,2540.6,2540.4,16.98]
[1748004452973,6.0,2540.9,2540.6,3.93606094]
[1748004453133,6.0,2540.9,2540.4,20.91638196]
[1748004453338,3.93576826,2540.8,2540.7,21.583]
[1748004453536,9.93568334,2540.9,2540.7,21.583]
[1748004453770,9.93564195,2540.9,2540.7,21.583]
[1748004453974,6.0,2540.9,2540.7,21.583]
[1748004454355,9.93568487,2540.9,2540.7,21.583]
[1748004454570,3.93576826,2540.8,2540.7,21.583]
[1748004455340,6.0,2540.9,2540.4,16.98]
[1748004455542,6.0,2540.9,2540.5,21.583]
[1748004455543,3.93589902,2540.8,2540.5,21.583]
[1748004455747,3.93579193,2540.8,2540.5,21.583]
[1748004455948,9.93562072,2540.9,2540.5,21.583]
[1748004456277,6.0,2540.9,2540.5,21.583]
[1748004456477,6.0,2540.9,2540.5,25.5191513]
[1748004456665,11.796,2540.8,2540.5,25.5191513]
[1748004456849,6.0,2540.9,2540.5,25.5191513]
[1748004457050,9.93562032,2540.9,2540.5,21.583]
[1748004457250,3.93607809,2540.6,2540.5,21.583]
[1748004457676,3.93623302,2540.5,2540.4,16.98]
[1748004458046,11.796,2540.8,2540.4,16.98]
[1748004458248,6.0,2540.9,2540.4,16.98]
[1748004458472,11.796,2540.8,2540.4,16.98]
[1748004458671,6.0,2540.9,2540.4,16.98]
[1748004458885,6.0,2540.9,2540.4,20.91630575]
[1748004458886,11.796,2540.7,2540.4,20.91630575]
[1748004459184,11.796,2540.7,2540.5,3.93623302]
[1748004459385,6.0,2540.9,2540.5,6.34746105]
[1748004459678,6.0,2540.9,2540.7,3.9358394]
[1748004459880,15.73282718,2540.8,2540.4,16.98]
[1748004460215,15.73287371,2540.8,2540.4,16.98]
[1748004460478,6.0,2540.9,2540.8,3.93576826]
[1748004460684,17.797,2540.9,2540.6,3.9360202]
[1748004460868,17.797,2540.9,2540.5,3.93620412]
[1748004460869,17.797,2540.9,2540.5,3.93612855]
[1748004461077,17.797,2540.9,2540.5,3.93614727]
[1748004461389,17.797,2540.9,2540.6,25.523049]
[1748004461580,17.797,2540.9,2540.8,3.93576826]
[1748004461974,11.797,2541.1,2541.0,3.93537372]
[1748004462151,3.93522787,2541.2,2540.7,3.93584886]
[1748004462351,3.93527806,2541.2,2540.7,3.93584886]
[1748004462579,3.93527806,2541.2,2540.8,25.52274513]
[1748004462780,3.93552933,2541.0,2540.8,21.587]
[1748004463187,11.797,2541.3,2540.8,21.587]
[1748004463188,3.9352268,2541.2,2540.8,21.587]
[1748004463484,15.73200605,2541.3,2540.9,21.587]
[1748004463689,3.93526493,2541.2,2540.9,21.587]
[1748004464013,3.93514874,2541.2,2540.9,21.587]
[1748004464301,9.93515047,2541.2,2540.9,21.587]
[1748004464506,6.0,2541.2,2540.9,21.587]
[1748004464859,9.9352161,2541.2,2540.9,21.587]
[1748004465293,9.93520955,2541.2,2540.9,21.587]
[1748004465496,3.9353036,2541.1,2540.9,21.587]
[1748004465703,3.93545848,2541.0,2540.9,21.587]
[1748004465901,3.93587744,2540.8,2540.4,16.98]
[1748004466103,11.797,2540.7,2540.5,21.587]
[1748004466402,11.797,2540.7,2540.6,3.93607809]
[1748004466609,6.0,2541.0,2540.8,3.93574171]
[1748004466766,11.797,2540.9,2540.7,3.93582614]
[1748004466966,11.797,2540.9,2540.7,3.93585869]
[1748004467185,11.797,2540.9,2540.5,21.587]
[1748004467392,11.797,2540.9,2540.5,25.52314229]
[1748004467595,11.797,2540.9,2540.6,3.93603464]
[1748004467911,11.797,2540.9,2540.7,3.93580165]
[1748004468063,6.0,2541.0,2540.9,3.93561336]
[1748004468265,6.0,2541.5,2541.4,3.93483906]
[1748004468478,17.797,2541.7,2541.4,25.5217128]
[1748004468686,17.797,2541.7,2541.4,21.587]
[1748004469066,0.46234208,2542.1,2541.6,1.4875]
[1748004469265,4.3962162,2542.1,2541.6,1.4875]
[1748004469465,0.46234208,2542.1,2541.6,1.4875]
[1748004469698,3.93416908,2541.9,2541.6,1.4875]
[1748004469878,4.39613987,2542.1,2541.7,21.587]
[1748004470080,4.39613987,2542.1,2541.8,21.587]
[1748004470389,3.93397943,2542.0,2541.8,21.587]
[1748004470699,15.73068182,2542.2,2541.8,21.587]
[1748004470904,6.0,2542.3,2541.8,21.587]
[1748004471107,11.797,2542.2,2541.8,21.587]
[1748004471699,17.796,2542.1,2541.5,16.988]
[1748004471902,17.796,2542.1,2541.6,21.585]
[1748004472071,21.72976122,2542.1,2541.6,21.585]
[1748004472269,3.93391899,2542.0,2541.6,21.585]
[1748004472577,17.796,2542.1,2541.6,21.585]
[1748004472784,21.72977043,2542.1,2541.6,25.51944446]
[1748004472979,11.796,2542.1,2541.6,21.585]
[1748004473179,1.4205,2542.8,2541.7,11.8573]